Workbook

Sheet 발주계획
B1: 울산광역시 공고 제2025 - 808호
B2: 2025년도 2/4분기 발주계획(공사·용역·물품) 공고
B3: 「지방자치단체를 당사자로 하는 계약에 관한 법률」 제43조 및 같은 법 시행령 제124조에 따라 우리시 2025년도 2분기 발주계획을 다음과 같이 공고합니다. 2025. 4. 1. 울산광역시장
C4: 각 시트별 집계현황
C5: 총 | D5: =SUM(D6:D8) -> 230건 | E5: =E6+E7+E8 -> 74,417백만원
C6: 공사 | D6: =COUNTA(공사!A2:A101) -> 49건 | E6: =INT(SUM(공사!F:F)/1000000) -> 51,537백만원
C7: 용역 | D7: =COUNTA(용역!A2:A98) -> 86건 | E7: =INT(SUM(용역!G:G)/1000000) -> 17,121백만원
C8: 물품 | D8: =COUNTA(물품!A2:A115) -> 95건 | E8: =INT(SUM(물품!H:H)/1000000) -> 5,759백만원
B10: ※ 설계결과, 현지여건, 우리시 사정등에 의하여 사업의 분리 또는 사업비의 증감, 발주시기 등이 변경될 수 있습니다.

Sheet 공사
A1: 발주년도 | B1: 발주월 | C1: 공사명 | D1: 공종 | E1: 발주물량 또는 규모 | F1: 발주도급금액 (단위:원) | G1: 발주관급자재비 | H1: 발주기타금액 | I1: 발주합계금액 | J1: 금차도급금액 | K1: 부서명 | L1: 담당자 | M1: 연락처 | N1: 비고
A2: 2025 | B2: 4 | C2: 여천배수펌프장 수중펌프 설치 전기공사 | D2: 전기 | E2: 22.9KV 한전인입선로구축 0.6KV 75KW VFD 제어반 한전불입금 | F2: 90,332,000 | G2: 199,610,000 | H2: 23,360,000 | I2: 313,302,000 | K2: 국제정원박람회추진단 | L2: 신덕희 | M2: 052-229-7432
A3: 2025 | B3: 4 | C3: 여천배수펌프장 수중펌프 설치 기계공사 | D3: 전문 | E3: 0.6KV 75KW 수중배수 펌프설치 기자재 설치 및 배관공사 | F3: 281,039,000 | G3: 556,643,000 | I3: 837,682,000 | K3: 국제정원박람회추진단 | L3: 신덕희 | M3: 052-229-7432
A4: 2025 | B4: 4 | C4: 장생포고래로로185번길 일원 불량배수관 교체공사 | D4: 토목 | E4: 노후상수도관 교체 L=317m | F4: 110,000,000 | G4: 35,000,000 | I4: 145,000,000 | J4: 110,000,000 | K4: 상수도사업본부 남부사업소 | L4: 임연하 | M4: 052-229-5701
A5: 2025 | B5: 4 | C5: <어반아트 개인전 1부- 존원>전시 공간 연출 디자인 및 공사 | D5: 건축 | F5: 22,000,000 | I5: 22,000,000 | K5: 울산시립미술관 | L5: 김명희 | M5: 052-229-8442
A6: 2025 | B6: 4 | C6: 용암중계펌프장 수중펌프 C호기 교체공사 | D6: 기타 | E6: 수중펌프 1대 교체 | F6: 5,000,000 | G6: 50,000,000 | I6: 55,000,000 | K6: 온산수질개선사업소 | L6: 김승준 | M6: 052-229-5988
A7: 2025 | B7: 4 | C7: 방어진수질개선사업소 효문중계펌프장 제진기 정기보수 | D7: 전문 | E7: 제진기 정기보수 1기 | F7: 50,000,000 | I7: 50,000,000 | K7: 하수관리과 | L7: 김정현 | M7: 052-229-3297
A8: 2025 | B8: 4 | C8: 회야수질개선사업소 탈취설비 보수 | D8: 전문 | E8: 탈취설비 3기 | F8: 186,000,000 | I8: 186,000,000 | K8: 하수관리과 | L8: 김정현 | M8: 052-229-3297
A9: 2025 | B9: 4 | C9: 언양수질개선사업소 유량계 교체 | D9: 전문 | E9: 유량계 교체 6기 | F9: 40,000,000 | I9: 40,000,000 | K9: 하수관리과 | L9: 김정현 | M9: 052-229-3297
A10: 2025 | B10: 4 | C10: 방어진수질개선사업소 케익이송모노펌프 보수 | D10: 전문 | E10: 이송모노펌프 1기 | F10: 70,000,000 | I10: 70,000,000 | K10: 하수관리과 | L10: 김정현 | M10: 052-229-3297
A11: 2025 | B11: 4 | C11: 2025년 광역시도(중구,북구,동구) 우수받이 정비사업 | D11: 전문 | E11: 우수받이 준설 4,928개소 | F11: 400,000,000 | I11: 400,000,000 | K11: 종합건설본부 건설부 | L11: 권나영 | M11: 052-229-5872
A12: 2025 | B12: 4 | C12: 2025년 광역시도(명륜로,다운로) 보도정비공사 | D12: 전문 | E12: 보도정비 L=600m | F12: 150,000,000 | G12: 100,000,000 | I12: 250,000,000 | K12: 종합건설본부 건설부 | L12: 권나영 | M12: 052-229-5872
A13: 2025 | B13: 4 | C13: 2025년 광역시도(산업로) 도로재포장공사 | D13: 전문 | E13: 아스콘 절삭 및 재포장 L=300m | F13: 35,000,000 | G13: 65,000,000 | I13: 100,000,000 | K13: 종합건설본부 건설부 | L13: 장다인 | M13: 052-229-5874
A14: 2025 | B14: 4 | C14: 2025년 광역시도(아산로) 자전거도로재포장공사 | D14: 전문 | E14: 아스콘 절삭 및 재포장 L=2500m | F14: 175,000,000 | G14: 325,000,000 | I14: 500,000,000 | K14: 종합건설본부 건설부 | L14: 장다인 | M14: 052-229-5874
A15: 2025 | B15: 4 | C15: 봉수로 보도확장공사 | D15: 전문 | E15: 데크설치 L=74m, B=1.8m | F15: 30,000,000 | G15: 70,000,000 | I15: 100,000,000 | K15: 종합건설본부 건설부 | L15: 함영민 | M15: 052-229-5873
A16: 2025 | B16: 4 | C16: 장생포로(매암사거리 일원) 도로배수시설 개선사업 | D16: 토목 | E16: 압송관로(D400) 1,137m, 배수펌프(120HP) 1개소 | F16: 314,080,000 | G16: 453,920,000 | I16: =F16+G16+H16 -> 768,000,000 | J16: 314,080,000 | K16: 종합건설본부 건설부 | L16: 박소현 | M16: 052-229-5593
A17: 2025 | B17: 4 | C17: 처용로(sk삼거리 일원) 도로배수시설 개선사업 | D17: 토목 | E17: 압송관로(D300) 204m, 배수펌프(30HP) 1개소 | F17: 210,900,000 | G17: 94,100,000 | I17: 305,000,000 | J17: 210,900,000 | K17: 종합건설본부 건설부 | L17: 박소현 | M17: 052-229-5593
A18: 2025 | B18: 4 | C18: 장생포로(매암사거리 일원) 도로배수시설 개선사업(전기) | D18: 전기 | E18: 프로세스제어반 설치공사 등 | F18: 14,866,000 | G18: 88,675,000 | H18: 14,751,000 | I18: 118,292,000 | J18: =G18+H18+I18 -> 221,718,000 | K18: 종합건설본부 건설부 | L18: 박소현 | M18: 052-229-5593
A19: 2025 | B19: 4 | C19: 처용로(sk삼거리 일원) 도로배수시설 개선사업(전기) | D19: 전기 | E19: 프로세스제어반 설치공사 등 | F19: 12,908,000 | G19: 62,243,000 | H19: 2,733,000 | I19: 77,884,000 | J19: =G19+H19+I19 -> 142,860,000 | K19: 종합건설본부 건설부 | L19: 박소현 | M19: 052-229-5593
A20: 2025 | B20: 4 | C20: 공단로(원산사거리) 도로배수시설 개선사업 | D20: 토목 | E20: 압송관로 (D400) 191m, 배수펌프(70HP) 1개소 | F20: 255,050,000 | G20: 167,950,000 | I20: 423,000,000 | J20: =I20 -> 423,000,000 | K20: 종합건설본부 건설부 | L20: 김용배 | M20: 052-229-5591
A21: 2025 | B21: 4 | C21: 공단로(원산사거리) 도로배수시설 개선사업(전기) | D21: 전기 | E21: 프로세스제어반 설치공사 등 | F21: 54,846,000 | G21: 82,990,000 | H21: 10,729,000 | I21: 148,565,000 | J21: =I21 -> 148,565,000 | K21: 종합건설본부 건설부 | L21: 김용배 | M21: 052-229-5591
A22: 2025 | B22: 4 | C22: 산업로 도로배수시설 개선사업 | D22: 토목 | E22: 압송관로 (D300) 191m, 배수펌프(40HP) 1개소 | F22: 387,812,000 | G22: 185,188,000 | I22: 573,000,000 | J22: =I22 -> 573,000,000 | K22: 종합건설본부 건설부 | L22: 정상봉 | M22: 052-229-5592
A23: 2025 | B23: 4 | C23: 산업로 도로배수시설 개선사업(전기) | D23: 전기 | E23: 프로세스제어반 설치공사 등 | F23: 11,937,000 | G23: 62,254,000 | H23: 4,835,000 | I23: 79,026,000 | J23: =I23 -> 79,026,000 | K23: 종합건설본부 건설부 | L23: 정상봉 | M23: 052-229-5592
A24: 2025 | B24: 4 | C24: 자전거도로 사고위험지역 개선사업 | D24: 전문 | E24: 자전거도로정비 799m(B=2.5~6.0m) | F24: 86,160,000 | G24: 77,300,000 | I24: 163,460,000 | J24: =F24 -> 86,160,000 | K24: 생태정원과 | L24: 김만수 | M24: 052-229-8542
A25: 2025 | B25: 5 | C25: 2025년 ITS보강 및 확장 공사 | D25: 통신 | E25: 관내 ITS 보강 및 확장사업 | F25: 500,000,000 | G25: 300,000,000 | I25: 800,000,000 | K25: 교통기획과 | L25: 한동호 | M25: 052-229-4272
A26: 2025 | B26: 5 | C26: 고원식 횡단보도 설치공사 | D26: 토목 | F26: 70,000,000 | G26: 40,000,000 | I26: 110,000,000 | J26: 70,000,000 | K26: 교통기획과 | L26: 김창훈 | M26: 052-229-4263
A27: 2025 | B27: 5 | C27: 옥동 법대로 일원 노후상수도관 교체공사 | D27: 토목 | E27: 노후상수도관 교체 L=2,200m | F27: 540,000,000 | G27: 290,000,000 | I27: 830,000,000 | J27: 540,000,000 | K27: 상수도사업본부 남부사업소 | L27: 임연하 | M27: 052-229-5701
A28: 2025 | B28: 5 | C28: 냉방시설물(냉온수기, 냉각탑) 세관 및 정비작업 | D28: 전문 | E28: 냉방시설물(냉온수기, 냉각탑) 세관 및 정비 | F28: 15,000,000 | I28: 15,000,000 | J28: 15,000,000 | K28: 울산도서관 운영지원과 | L28: 문진우 | M28: 052-229-6862
A29: 2025 | B29: 5 | C29: 관문 홍보물 설치 | D29: 전문 | E29: 관문 20개소 29개 | F29: 1,000,000,000 | K29: 도시경관과 | L29: 정연주 | M29: 052-229-6523
A30: 2025 | B30: 5 | C30: 반구천 일원 역사문화탐방로(1단계) 조성 | D30: 토목 | E30: 진입도로 정비 및 휴게공간 조성 등 | F30: 1,250,000,000 | G30: 921,000,000 | I30: =SUM(F30:H30) -> 2,171,000,000 | J30: =I30 -> 2,171,000,000 | K30: 반구천암각화세계유산추진단 | L30: 손태환 | M30: 052-229-7513
A31: 2025 | B31: 5 | C31: 반구천 동매산습지 경관개선사업 | D31: 토목 | E31: 수변데크 조성 및 수생식물 군락지 조성 등 | F31: 1,313,000,000 | G31: 1,121,000,000 | I31: =SUM(F31:H31) -> 2,434,000,000 | J31: =I31 -> 2,434,000,000 | K31: 반구천암각화세계유산추진단 | L31: 손태환 | M31: 052-229-7513
A32: 2025 | B32: 5 | C32: 일차침전지 슬러지 인발밸브 교체공사 | D32: 기타 | E32: 슬러지 인발밸브 교체공사 1식 전동형 게이트밸브 9대 | F32: 29,790,000 | G32: 62,874,000 | H32: 271,610 | I32: 92,935,610 | K32: 온산수질개선사업소 | L32: 한승훈 | M32: 052-229-5996
A33: 2025 | B33: 5 | C33: 채광창 필름 보수 공사 | D33: 건축 | E33: 비계 설치 및 필름 교체 | F33: 50,000,000 | I33: 50,000,000 | J33: 50,000,000 | K33: 울산박물관 | L33: 박정석 | M33: 052-229-4789
A34: 2025 | B34: 5 | C34: 회야수질개선사업소 생물반응조 교반기 정기보수 | D34: 전문 | E34: 생물반응조 교반기 12기 | F34: 80,000,000 | I34: 80,000,000 | K34: 하수관리과 | L34: 김정현 | M34: 052-229-3297
A35: 2025 | B35: 5 | C35: 방어진수질개선사업서 중계펌프장 컨베이어 보수 | D35: 전문 | E35: 컨베이서 3기 | F35: 104,000,000 | I35: 104,000,000 | K35: 하수관리과 | L35: 김정현 | M35: 052-229-3297
A36: 2025 | B36: 5 | C36: 올림푸스아파트 일원 대공원로 확장공사 | D36: 토목 | E36: L=0.32km, B=12m → 20m | F36: 1,279,000,000 | G36: 554,480,000 | I36: 1,833,480,000 | J36: 1,279,000,000 | K36: 종합건설본부 건설부 | L36: 서영준, 이형우 | M36: 052-229-5863, 5866
A37: 2025 | B37: 5 | C37: 장생포 순환도로 확장공사 | D37: 토목 | E37: L=2.06km, B=10~12m → 25m | F37: 14,230,660,000 | G37: 8,024,210,000 | I37: 22,183,260,000 | J37: 14,230,660,000 | K37: 종합건설본부 건설부 | L37: 김진영, 이지원 | M37: 052-229-5861, 5864
A38: 2025 | B38: 5 | C38: 길천산단~지화마을 간 도로개설공사 | D38: 토목 | E38: 도로 개설 L=1.0㎞, B=20m | F38: 2,238,920,000 | G38: 1,271,800,000 | H38: 199,680,000 | I38: =F38+G38+H38 -> 3,710,400,000 | J38: 2,498,000,000 | K38: 종합건설본부 건설부 | L38: 차종철, 이지원 | M38: 052-229-5862, 5864
A39: 2025 | B39: 5 | C39: 2025년 강동번영로 자동제설장치 설치공사 | D39: 전문 | E39: 염수분사장치 설치 1식 | F39: 100,000,000 | G39: 600,000,000 | I39: 700,000,000 | K39: 종합건설본부 건설부 | L39: 장다인 | M39: 052-229-5874
A40: 2025 | B40: 6 | C40: 관내도로 노면표시 개선사업 | D40: 토목 | F40: 210,000,000 | G40: 80,000,000 | I40: 290,000,000 | J40: 210,000,000 | K40: 교통기획과 | L40: 김창훈 | M40: 052-229-4263
A41: 2025 | B41: 6 | C41: 울산수목원 하수관로 이설 공사 | D41: 토목 | E41: 압송관 D80mm, 부설 L = 115M | F41: 50,000,000 | I41: 50,000,000 | K41: 수목원관리사무소 | L41: 박해동 | M41: 052-229-8572
A42: 2025 | B42: 6 | C42: 언양수질개선사업소 2차침전지 슬러지수집기 보수 | D42: 전문 | E42: 슬러지수집기 E호기 | F42: 75,000,000 | I42: 75,000,000 | K42: 하수관리과 | L42: 김정현 | M42: 052-229-3297
A43: 2025 | B43: 6 | C43: 방어진수질개선사업소 탈수기 및 농축기 보수 | D43: 전문 | E43: 탈수기 E호기, 농축기 A호기 | F43: 72,000,000 | I43: 72,000,000 | K43: 하수관리과 | L43: 김정현 | M43: 052-229-3297
A44: 2025 | B44: 6 | C44: 울산권역 노후하수관로 정비공사 | D44: 토목 | E44: 노후하수관로 정비 L=18.4km | F44: 20,100,000,000 | G44: 3,450,000,000 | I44: 23,550,000,000 | K44: 하수관리과 | L44: 김정인 | M44: 052-229-3303
A45: 2025 | B45: 6 | C45: 온산하수처리시설 증설사업(전기 및 계측제어공사) | D45: 전기 | E45: 옥외설비, 동력제어, 건축전기,계측제어 | F45: 3,104,770,000 | G45: 2,570,950,000 | H45: 101,370,000 | I45: =F45+G45+H45 -> 5,777,090,000 | J45: 1,000,000,000 | K45: 하수관리과 | L45: 박경배 | M45: 052-229-3283
A46: 2025 | B46: 6 | C46: 온산하수처리시설 증설사업(정보통신공사) | D46: 통신 | E46: CCTV, 정보통신설비 | F46: 248,230,000 | G46: 200,270,000 | H46: 13,200,000 | I46: 461,700,000 | J46: 100,000,000 | K46: 하수관리과 | L46: 박경배 | M46: 052-229-3283
A47: 2025 | B47: 6 | C47: 특색있는 거리정원 조성사업 | D47: 전문 | E47: 정원조성 1식 | F47: 84,000,000 | G47: 10,000,000 | I47: 94,000,000 | K47: 생태정원과 | L47: 조은정 | M47: 052-229-8522
A48: 2025 | B48: 6 | C48: 정원지원센터 실내정원 조성사업 | D48: 전문 | E48: 실내정원 조성 1식 | F48: 900,000,000 | I48: 900,000,000 | K48: 생태정원과 | L48: 조은정 | M48: 052-229-8522
A49: 2025 | B49: 6 | C49: 정원지원센터 내부시설 공사 | D49: 전문 | E49: 실내 인테리어 1식 | F49: 700,000,000 | I49: 700,000,000 | K49: 생태정원과 | L49: 조은정 | M49: 052-229-8522
A50: 2025 | B50: 6 | C50: 정원지원센터 내부시설 공사(전기) | D50: 전기 | E50: 전기공사 1식 | F50: 200,000,000 | I50: 200,000,000 | K50: 생태정원과 | L50: 조은정 | M50: 052-229-8522

Sheet 용역
A1: 발주년도 | B1: 발주월 | C1: 용역명 | D1: 업무유형 | E1: 용역구분 | F1: 사업내용(발주규모 등) | G1: 예산액 (단위: 원) | H1: 부서명 | I1: 담당자 | J1: 연락처 | K1: 비고
A2: 2025 | B2: 4 | C2: 울산 도시철도1호선 교통영향평가 용역 | D2: 신규 | E2: 기술용역 | F2: 교통영향평가 1식 | G2: 249,854,000 | H2: 광역트램교통과 | I2: 이영진 | J2: 052-229-7794
A3: 2025 | B3: 4 | C3: 여천배수펌프장 수중펌프설치 전기공사 감리용역 | D3: 신규 | E3: 기술용역 | F3: 전기공사 감리용역 1식 | G3: 13,350,000 | H3: 국제정원박람회추진단 | I3: 신덕희 | J3: 052-229-7432
A4: 2025 | B4: 4 | C4: 2025년 작목별 맞춤형 안전관리 실천 시범사업 컨설팅 | D4: 신규 | E4: 기술용역 | F4: 농업인 안전 컨설팅 | G4: 7,500,000 | H4: 농업기술센터 | I4: 장순영 | J4: 052-229-5292
A5: 2025 | B5: 4 | C5: 2025년 상반기 울산도서관 저수조·우수조 청소 용역 | D5: 신규 | E5: 일반용역 | F5: 저수조·우수조 청소 | G5: 4,000,000 | H5: 울산도서관 운영지원과 | I5: 문진우 | J5: 052-229-6862
A6: 2025 | B6: 4 | C6: 옥동 군부대 대체시설 건설 재해영향평가 용역 | D6: 신규 | E6: 기술용역 | F6: 재해영향평가 1식 | G6: 198,000,000 | H6: 도시균형개발과 | I6: 조정욱 | J6: 052-229-7733
A7: 2025 | B7: 4 | C7: 옥동 군부대 대체시설 건설 소규모 환경영향평가 용역 | D7: 신규 | E7: 기술용역 | F7: 소규모 환경영향평가 1식 | G7: 176,000,000 | H7: 도시균형개발과 | I7: 조정욱 | J7: 052-229-7733
A8: 2025 | B8: 4 | C8: 세계적 공연장 건립 국제 설계공모 관리용역 | D8: 신규 | E8: 일반용역 | F8: 설계공모 관리용역 1식 | G8: 150,000,000 | H8: 문화예술과 | I8: 임희갑 | J8: 052-229-3742
A9: 2025 | B9: 4 | C9: 2025년 상반기 이화산단 4-BLOCK 보강토옹벽 정기안전점검 | D9: 신규 | E9: 기술용역 | F9: 안전점검 보고서작성 | G9: 5,000,000 | H9: 에너지산업과 | I9: 한혜경 | J9: 052-229-6494
A10: 2025 | B10: 4 | C10: 2025년 울산시립미술관 냉방시설물 세관 및 정비 용역 | D10: 신규 | E10: 일반용역 | F10: 냉방시설물 세관, 정비 | G10: 12,848,000 | H10: 울산시립미술관 | I10: 윤성근 | J10: 052-229-8438
A11: 2025 | B11: 4 | C11: <어반아트 개인전 1부- 존원>국제 작품 운송&반출 및 설치 | D11: 신규 | E11: 일반용역 | F11: 작품 운송 및 설치 | G11: 22,000,000 | H11: 울산시립미술관 | I11: 김명희 | J11: 052-229-8442
A12: 2025 | B12: 4 | C12: 행복한 미래설계 1기 교육 운영 용역 | D12: 신규 | E12: 일반용역 | F12: 교육운영 | G12: 32,000,000 | H12: 인재교육과 | I12: 이수인 | J12: 052-229-4975
A13: 2025 | B13: 4 | C13: 스마트 기획력 향상 1기 | D13: 신규 | E13: 일반용역 | F13: 교육운영 | G13: 6,200,000 | H13: 인재교육과 | I13: 오유진 | J13: 052-229-4974
A14: 2025 | B14: 4 | C14: 2025년 스마트러닝과정 교육 위탁운영 용역 1분기 교육비 | D14: 신규 | E14: 일반용역 | F14: 교육운영 | G14: 35,000,000 | H14: 인재교육과 | I14: 예연성 | J14: 052-229-4973
A15: 2025 | B15: 4 | C15: 2025년 화상외국어 과정 위탁운영 | D15: 신규 | E15: 일반용역 | F15: 교육운영 | G15: 9,400,000 | H15: 인재교육과 | I15: 예연성 | J15: 052-229-4973
A16: 2025 | B16: 4 | C16: 제1기 지식UP콘서트 | D16: 신규 | E16: 일반용역 | F16: 제1기 지식UP콘서트 교육 운영 1식 | G16: 24,000,000 | H16: 인재교육과 | I16: 채명균 | J16: 052-229-4972
A17: 2025 | B17: 4 | C17: 직급별 맞춤형(6급) 교육 운영 용역 | D17: 신규 | E17: 일반용역 | F17: 직급별 맞춤형(6급) 교육 운영 1식 | G17: 7,200,000 | H17: 인재교육과 | I17: 채명균 | J17: 052-229-4972
A18: 2025 | B18: 4 | C18: 울산컵 세척운반 용역 | D18: 신규 | E18: 일반용역 | F18: 울산컵 공급, 수거, 세척, 재공급 | G18: 80,000,000 | H18: 자원순환과 | I18: 송라주 | J18: 052-229-3234
A19: 2025 | B19: 4 | C19: 2025년 고객만족도 조사 용역 | D19: 신규 | E19: 일반용역 | F19: 고객만족도 조사 | G19: 22,000,000 | H19: 자치행정과 | I19: 이정현 | J19: 052-229-2524
A20: 2025 | B20: 4 | C20: 2025년 이장통장연합회 역량강화 워크숍 | D20: 장기 | E20: 일반용역 | F20: 이장통장 임원(약 250명) 대상 워크숍 | G20: 40,000,000 | H20: 자치행정과 | I20: 이윤지 | J20: 052-229-2493
A21: 2025 | B21: 4 | C21: 남외동 동천동강병원 일원 상수관로 세척용역 | D21: 신규 | E21: 일반용역 | F21: 관로세척(D=100~150mm, L=2200m) | G21: 180,000,000 | H21: 중부사업소 | I21: 서성대 | J21: 052-229-5671
A22: 2025 | B22: 4 | C22: 반구동 아담아파트 일원 상수관로 세척용역 | D22: 신규 | E22: 일반용역 | F22: 관로세척(D=80~250mm, L=2700m) | G22: 220,000,000 | H22: 중부사업소 | I22: 서성대 | J22: 052-229-5671
A23: 2025 | B23: 4 | C23: 2025년 공간측량정보 드론활용 경진대회 | D23: 신규 | E23: 일반용역 | F23: 2024년 공간측량정보 드론활용 경진대회 행사운영(1일) | G23: 10,000,000 | H23: 토지정보과 | I23: 장재영 | J23: 052-229-4462
A24: 2025 | B24: 4 | C24: 흡수식 냉·온수기 세관 작업 | D24: 신규 | E24: 일반 | F24: 흡수식 냉·온수기 세관 및 기타 소모품 교체 등 | G24: 15,000,000 | H24: 경영관리과 | I24: 구본창 | J24: 052-226-8330
A25: 2025 | B25: 4 | C25: 어린이박물관 전시체험물 개선 용역 | D25: 신규 | E25: 일반용역 | F25: 전시체험물 2종 교체 및 수리 | G25: 50,000,000 | H25: 울산박물관 | I25: 정수영 | J25: 052-229-4723
A26: 2025 | B26: 4 | C26: 울산박물관 온라인 전시관 구축 | D26: 신규 | E26: 일반용역 | F26: 울산박물관 홈페이지 내 온라인 전시관 구축 | G26: 34,110,000 | H26: 울산박물관 | I26: 이승우 | J26: 052-229-4724
A27: 2025 | B27: 4 | C27: 2025년 울산대곡박물관 상설전시실 전시개선(2차) 용역 | D27: 신규 | E27: 일반용역 | F27: 상설전시실 전시 개선 및 관람객 편의시설 확충 | G27: 600,000,000 | H27: 울산박물관 | I27: 이현정 | J27: 052-229-4781
A28: 2025 | B28: 4 | C28: 관내 간선관로 GPR 탐사 | D28: 신규 | E28: 기술용역 | F28: GPR탐사(오수관로 L=45km) | G28: 145,000,000 | H28: 하수관리과 | I28: 이정우 | J28: 052-229-3306
A29: 2025 | B29: 4 | C29: 유해대기측정시스템 유지관리비 | D29: 신규 | E29: 일반 | F29: 유해대기측정차량 수리 | G29: 10,000,000 | H29: 보건환경연구원 대기연구과 | I29: 서윤하 | J29: 052-229-6182
A30: 2025 | B30: 4 | C30: 자전거도로 사고위험지역 개선사업 폐기물(폐콘크리트)처리용역 | D30: 신규 | E30: 기술용역 | F30: 폐콘크리트 71톤 처리 및 운반 | G30: 3,590,000 | H30: 생태정원과 | I30: 김만수 | J30: 052-229-8542
A31: 2025 | B31: 4 | C31: 자전거도로 사고위험지역 개선사업 폐기물(폐아스콘)처리용역 | D31: 신규 | E31: 기술용역 | F31: 폐아스콘 409톤 처리 및 운반 | G31: 21,430,000 | H31: 생태정원과 | I31: 김만수 | J31: 052-229-8542
A32: 2025 | B32: 4 | C32: 자전거도로 사고위험지역 개선사업 건설재해예방기술지도용역 | D32: 신규 | E32: 기술용역 | F32: 건설재해예방기술지도 6회 | G32: 1,320,000 | H32: 생태정원과 | I32: 김만수 | J32: 052-229-8542
A33: 2025 | B33: 5 | C33: 태화강역~장생포 간 수소트램 운행사업 토질조사용역 | D33: 신규 | E33: 기술 | F33: 토질조사(2공) 및 실내시험 1식 | G33: 70,000,000 | H33: 광역트램교통과 | I33: 곽예준 | J33: 052-229-7786
A34: 2025 | B34: 5 | C34: 2025년 정기 교통량 및 속도 조사 | D34: 신규 | E34: 기술용역 | F34: 결과보고서 작성 1식 | G34: 120,000,000 | H34: 교통기획과 | I34: 임규생 | J34: 052-229-4265
A35: 2025 | B35: 5 | C35: 울산도시생태축 복원사업 소규모환경영향평가 용역 | D35: 신규 | E35: 일반용역 | F35: 소규모 환경영향평가 1식 | G35: 50,000,000 | H35: 국제정원박람회추진단 | I35: 김기만 | J35: 052-229-7423
A36: 2025 | B36: 5 | C36: 울산도시생태축 복원사업 사전재해영향평가 용역 | D36: 신규 | E36: 일반용역 | F36: 사전재해영향평가 1식 | G36: 50,000,000 | H36: 국제정원박람회추진단 | I36: 김기만 | J36: 052-229-7423
A37: 2025 | B37: 5 | C37: 2025 울산청년주간 행사대행 용역 | D37: 신규 | E37: 일반용역 | F37: 청년의 날 기념 '2025 울산청년주간' 행사 운영 | G37: 120,000,000 | H37: 대학협력과 | I37: 이상아 | J37: 052-229-7984
A38: 2025 | B38: 5 | C38: 상반기 울산도서관 기획전시 용역 | D38: 신규 | E38: 일반용역 | F38: 전시설계, 전시공간 구성 등 | G38: 10,000,000 | H38: 울산도서관 자료정책과 | I38: 정한내 | J38: 052-229-6903
A39: 2025 | B39: 5 | C39: 울산도서관 누리집 개편 | D39: 신규 | E39: 기술용역 | F39: 울산도서관, 어린이청소년도서관, 전자도서관 홈페이지 통합 및 전자도서관 홈페이지 재구축 | G39: 101,200,000 | H39: 울산도서관 정보서비스과 | I39: 정희재 | J39: 052-229-6985 | K39: 협상에 의한 계약
A40: 2025 | B40: 5 | C40: 연암천 등 3개 하천기본계획(변경) 수립에 따른 조사측량 용역 | D40: 신규 | E40: 기술용역 | F40: 조사측량용역 1식 | G40: 117,000,000 | H40: 맑은물정책과 | I40: 이정채 | J40: 052-229-7553
A41: 2025 | B41: 5 | C41: 연암천 등 3개 하천기본계획(변경) 수립에 따른 전략환경영향평가 용역 | D41: 신규 | E41: 기술용역 | F41: 전략환경영향평가 용역 | G41: 147,000,000 | H41: 맑은물정책과 | I41: 이정채 | J41: 052-229-7553
A42: 2025 | B42: 5 | C42: 시 무형유산 기록화 사업 | D42: 신규 | E42: 일반용역 | F42: 울산 마두희 영상 기록화 | G42: 20,000,000 | H42: 문화예술과 | I42: 이승희 | J42: 052-229-3732
A43: 2025 | B43: 5 | C43: 홍보 숏폼 제작 | D43: 신규 | E43: 일반용역 | F43: 문화유산, 아이누리패스, 세계적 공연장 등 홍보 숏폼 제작 | G43: 10,000,000 | H43: 문화예술과 | I43: 이승희 | J43: 052-229-3732
A44: 2025 | B44: 5 | C44: 정밀사진 데이터 구축 사업 | D44: 신규 | E44: 일반용역 | F44: 천전리 명문과 암각화 정밀사진 및 초분광 데이터 구축 | G44: 100,000,000 | H44: 반구천암각화세계유산추진단 | I44: 박미현 | J44: 052-229-7522
A45: 2025 | B45: 5 | C45: 반구천 일원 역사문화탐방로(1단계) 조성 감리용역 | D45: 신규 | E45: 기술용역 | F45: 감리용역 1식 | G45: 42,000,000 | H45: 반구천암각화세계유산추진단 | I45: 손태환 | J45: 052-229-7513
A46: 2025 | B46: 5 | C46: 반구천 동매산습지 경관개선사업 감리용역 | D46: 신규 | E46: 기술용역 | F46: 감리용역 1식 | G46: 45,000,000 | H46: 반구천암각화세계유산추진단 | I46: 손태환 | J46: 052-229-7513
A47: 2025 | B47: 5 | C47: 제70회 현충일 추념식 장비(물품) 임차 용역 | D47: 신규 | E47: 일반용역 | F47: 현충일 추념식 진행 | G47: 18,000,000 | H47: 보훈노인과 | I47: 유미은 | J47: 052-229-4812
A48: 2025 | B48: 5 | C48: 2025년 공공데이터 개방확대 및 품질개선 | D48: 신규 | E48: 일반용역 | F48: 공공데이터 개방 확대 및 정보시스템 DB 품질개선 | G48: 50,000,000 | H48: 스마트도시과 | I48: 성덕현 | J48: 052-229-6834
A49: 2025 | B49: 5 | C49: 소방정책 홍보 영상 제작 | D49: 신규 | E49: 일반 | F49: 영상제작(1건) | G49: 20,000,000 | H49: 예방안전과 | I49: 김진구 | J49: 052-229-5333
A50: 2025 | B50: 5 | C50: 2025년 제2기 전화이용 외국어과정 위탁운영 | D50: 신규 | E50: 일반용역 | F50: 교육운영 | G50: 20,000,000 | H50: 인재교육과 | I50: 예연성 | J50: 052-229-4973
A51: 2025 | B51: 5 | C51: 스마트 기획력 향상 2기 | D51: 신규 | E51: 일반용역 | F51: 교육운영 | G51: 6,200,000 | H51: 인재교육과 | I51: 오유진 | J51: 052-229-4974
A52: 2025 | B52: 5 | C52: 렉처 콘서트 1기 | D52: 신규 | E52: 일반용역 | F52: 렉처 콘서트 1기 | G52: 16,000,000 | H52: 인재교육과 | I52: 채명균 | J52: 052-229-4972
A53: 2025 | B53: 5 | C53: 민간위탁 관리비 원가산정 용역 | D53: 신규 | E53: 일반용역 | F53: 위탁운영비 원가산정 | G53: 16,000,000 | H53: 자원순환과 | I53: 이충걸 | J53: 052-229-3232
A54: 2025 | B54: 5 | C54: 2025년 주민자치 워크숍 | D54: 장기 | E54: 일반용역 | F54: 주민자치위원 등(약 150명) 대상 워크숍 | G54: 15,000,000 | H54: 자치행정과 | I54: 이윤지 | J54: 052-229-2493
A55: 2025 | B55: 5 | C55: 실험실 분석장비 검교정 | D55: 신규 | E55: 기술용역 | F55: 황온조 등 9종 16대 | G55: 3,500,000 | H55: 온산수질개선사업소 | I55: 최은경 | J55: 052-229-5975
A56: 2025 | B56: 5 | C56: 2025년 울산박물관 제1차 특별기획전 전시 연출 용역 | D56: 신규 | E56: 일반용역 | F56: 전시 연출 용역 1식 | G56: 180,000,000 | H56: 울산박물관 | I56: 정수영 | J56: 052-229-4723
A57: 2025 | B57: 5 | C57: 전략환경영향평가 | D57: 신규 | E57: 일반용역 | F57: 가축분뇨로 인한 수질, 악취, 토양오염 등 지역환경 영향 분석 | G57: 45,000,000 | H57: 환경대기과 | I57: 박민수 | J57: 052-229-3213
A58: 2025 | B58: 5 | C58: 공공하수도(하수관로) 기술진단용역(농소처리구역) | D58: 신규 | E58: 기술용역 | F58: 기술진단 1식 | G58: 3,000,000,000 | H58: 하수관리과 | I58: 허진우 | J58: 052-229-3305
A59: 2025 | B59: 5 | C59: 올림푸스아파트 일원 대공원로 확장공사 건설사업관리용역(부분) | D59: 신규 | E59: 기술용역 | F59: 구조물공 건설사업관리 | G59: 240,000,000 | H59: 종합건설본부 건설부 | I59: 서영준, 이형우 | J59: 052-229-5863, 5866
A60: 2025 | B60: 5 | C60: 장생포 순환도로 확장공사 건설사업관리용역(감독권한대행) | D60: 신규 | E60: 기술용역 | F60: 건설사업관리 1식(감독권한대행 포함) | G60: 2,938,000,000 | H60: 종합건설본부 건설부 | I60: 김진영, 이지원 | J60: 052-229-5861, 5864
A61: 2025 | B61: 5 | C61: 길천산단~지화마을 도로개설공사 건설폐기물 처리용역 | D61: 신규 | E61: 일반용역 | F61: 건설폐기물처리 1식 | G61: 173,570,000 | H61: 종합건설본부 건설부 | I61: 차종철, 이지원 | J61: 052-229-5862, 5864
A62: 2025 | B62: 5 | C62: 길천산단~지화마을 도로개설공사 지정폐기물 처리용역 | D62: 신규 | E62: 일반용역 | F62: 지정폐기물처리 1식 | G62: 26,110,000 | H62: 종합건설본부 건설부 | I62: 차종철, 이지원 | J62: 052-229-5862, 5864
A63: 2025 | B63: 5 | C63: 장생포로(매암사거리 일원) 도로배수시설 개선사업 건설폐기물처리용역 | D63: 신규 | E63: 일반용역 | F63: 건설폐기물처리 1식 | G63: 27,760,000 | H63: 종합건설본부 건설부 | I63: 박소현 | J63: 052-229-5593
A64: 2025 | B64: 5 | C64: 장생포로(매암사거리 일원) 도로배수시설 개선사업 건설폐기물처리용역 | D64: 신규 | E64: 일반용역 | F64: 건설폐기물처리 1식 | G64: 27,760,000 | H64: 종합건설본부 건설부 | I64: 박소현 | J64: 052-229-5593
A65: 2025 | B65: 5 | C65: 장생포로(매암사거리 일원) 도로배수시설 개선사업 GIS DB구축 용역 | D65: 신규 | E65: 일반용역 | F65: GIS DB 1식 | G65: 26,700,000 | H65: 종합건설본부 건설부 | I65: 박소현 | J65: 052-229-5593
A66: 2025 | B66: 5 | C66: 처용로(sk삼거리 일원) 도로배수시설 개선사업 GIS DB구축 용역 | D66: 신규 | E66: 일반용역 | F66: GIS DB 1식 | G66: 9,100,000 | H66: 종합건설본부 건설부 | I66: 박소현 | J66: 052-229-5593
A67: 2025 | B67: 5 | C67: 공단로(원산사거리) 도로배수시설 개선사업 건설폐기물처리용역 | D67: 신규 | E67: 일반용역 | F67: 건설폐기물처리 1식 | G67: =7400000+9180000 -> 16,580,000 | H67: 종합건설본부 건설부 | I67: 김용배 | J67: 052-229-5591
A68: 2025 | B68: 5 | C68: 공단로(원산사거리) 도로배수시설 개선사업 GIS DB구축 용역 | D68: 신규 | E68: 일반용역 | F68: GIS DB 1식 | G68: 10,500,000 | H68: 종합건설본부 건설부 | I68: 김용배 | J68: 052-229-5591
A69: 2025 | B69: 5 | C69: 산업로 도로배수시설 개선사업 건설폐기물처리용역 | D69: 신규 | E69: 일반용역 | F69: 건설폐기물처리 1식 | G69: 46,350,000 | H69: 종합건설본부 건설부 | I69: 정상봉 | J69: 052-229-5592
A70: 2025 | B70: 5 | C70: 산업로 도로배수시설 개선사업 GIS DB구축 용역 | D70: 신규 | E70: 일반용역 | F70: GIS DB 1식 | G70: 22,600,000 | H70: 종합건설본부 건설부 | I70: 정상봉 | J70: 052-229-5592
A71: 2025 | B71: 5 | C71: 2025년 연구실 정기 안전점검 | D71: 신규 | E71: 기술용역 | F71: 연구실 안전법 제14조 의거 안전점검 | G71: 4,000,000 | H71: 보건환경연구원 생활환경과 | I71: 이광원 | J71: 052-229-6691
A72: 2025 | B72: 6 | C72: 2025년 상반기 자동제어 시스템 정기 점검 | D72: 신규 | E72: 기술용역 | F72: 자동제어 시스템 점검 | G72: 5,000,000 | H72: 울산도서관 운영지원과 | I72: 문진우 | J72: 052-229-6862
A73: 2025 | B73: 6 | C73: 2025년 상반기 울산도서관 대기배출시설 자가측정 용역 | D73: 신규 | E73: 일반용역 | F73: 대기배출시설 가스 채취 및 측정 | G73: 1,000,000 | H73: 울산도서관 운영지원과 | I73: 문진우 | J73: 052-229-6862
A74: 2025 | B74: 6 | C74: 학산동 외 1개소 LID 비점오염 저감사업 외 1개소 통합건설사업관리용역 | D74: 장기 | E74: 기술용역 | F74: 간설사업관리용역 1식 | G74: 900,000,000 | H74: 맑은물정책과 | I74: 이지희 | J74: 052-229-7544
A75: 2025 | B75: 6 | C75: 암각화박물관 상설전시 일부 개편 용역 | D75: 신규 | E75: 일반용역 | F75: 상설전시 로비 및 청동기장 일부 개편 | G75: 10,000,000 | H75: 반구천암각화세계유산추진단 | I75: 성소현 | J75: 052-229-4791
A76: 2025 | B76: 6 | C76: 울산119안전문화축제 행사 | D76: 장기 | E76: 일반 | F76: 행사 용역(1건) | G76: 283,756,000 | H76: 예방안전과 | I76: 김정식 | J76: 052-229-5331
A77: 2025 | B77: 6 | C77: 한국119청소년단「도전! 안전상식 골든벨 대회」 | D77: 장기 | E77: 일반 | F77: 행사 용역(1건) | G77: 40,000,000 | H77: 예방안전과 | I77: 김진구 | J77: 052-229-5333
A78: 2025 | B78: 6 | C78: 소방동요 경연대회 | D78: 장기 | E78: 일반 | F78: 행사 용역(1건) | G78: 4,000,000 | H78: 예방안전과 | I78: 이현민 | J78: 052-229-5332
A79: 2025 | B79: 6 | C79: 정책홍보 역량 강화 | D79: 신규 | E79: 일반용역 | F79: 교육운영 | G79: 6,600,000 | H79: 인재교육과 | I79: 오유진 | J79: 052-229-4974
A80: 2025 | B80: 6 | C80: 대화형 인공지능 기초와 활용 1, 2기 교육 운영 용역 | D80: 신규 | E80: 일반용역 | F80: 교육운영 | G80: 7,000,000 | H80: 인재교육과 | I80: 이수인 | J80: 052-229-4975
A81: 2025 | B81: 6 | C81: 새로 만드는 울산이해하기 교육 | D81: 신규 | E81: 일반용역 | F81: 저연차 공무원 대상 울부심UP 워크숍 | G81: 40,000,000 | H81: 인재교육과 | I81: 채명균 | J81: 052-229-4972
A82: 2025 | B82: 6 | C82: 온산바이오에너지센터 외장재 보수공사 실시설계용역 | D82: 신규 | E82: 기술용역 | F82: 외장재보수공사 실시설계 | G82: 16,000,000 | H82: 온산수질개선사업소 | I82: 안소군 | J82: 052-229-5982
A83: 2025 | B83: 6 | C83: 수장고 소독 및 소장유물 포장 훈증 | D83: 신규 | E83: 일반용역 | F83: 수장고 소독 및 대여,기증유물 등 포장훈증 | G83: 12,000,000 | H83: 울산박물관 | I83: 황선혜 | J83: 052-229-4742
A84: 2025 | B84: 6 | C84: 울산권역 노후하수관로 정비공사 건설폐기물처리용역 | D84: 신규 | E84: 기술용역 | F84: 건설폐기물처리 1식 | G84: 933,000,000 | H84: 하수관리과 | I84: 김정인 | J84: 052-229-3304
A85: 2025 | B85: 6 | C85: 울산권역 노후하수관로 정비공사 시공 및 준공검사 용역 | D85: 신규 | E85: 기술용역 | F85: 시공 및 준공검사 1식 | G85: 1,004,000,000 | H85: 하수관리과 | I85: 김정인 | J85: 052-229-3304
A86: 2025 | B86: 6 | C86: 울산권역 노후하수관로 정비공사 GIS DB 구축 용역 | D86: 신규 | E86: 기술용역 | F86: GIS DB 구축 1식 | G86: 313,000,000 | H86: 하수관리과 | I86: 김정인 | J86: 052-229-3304
A87: 2025 | B87: 6 | C87: 울산권역 노후하수관로 정비공사 감독권한대행 등 건설사업관리용역 | D87: 신규 | E87: 기술용역 | F87: 감독권한대행 등 건설사업관리 1식 | G87: 3,200,000,000 | H87: 하수관리과 | I87: 김정인 | J87: 052-229-3304

Sheet 물품
A1: 발주년도 | B1: 발주월 | C1: 사업명 | D1: 세부품명번호 * | E1: 품 명 | F1: 수량 | G1: 수량단위 | H1: 구매예정금액(원) | I1: 부서명 | J1: 담당자 | K1: 연락처 | L1: 비고
A2: 2025 | B2: 4 | C2: 2025년 부유물질 제거 무기응집제(pac) 구입(2차) | D2: 20204697 | E2: 47101608 | F2: 150 | G2: 톤 | H2: 45,000,000 | I2: 온산수질개선사업소 | J2: 이정봉 | K2: 052-229-5973
A3: 2025 | B3: 4 | C3: 2025년 비도서 2차(소장형 전자책) 구입 | D3: 5510151001 | E3: 전자책 | F3: 1 | G3: 식 | H3: 49,000,000 | I3: 울산도서관 정보서비스과 | J3: 장원익 | K3: 052-229-6983
A4: 2025 | B4: 4 | C4: TOC 소모품 구매 | E4: 연소관 외 4종 | F4: 5 | G4: ea | H4: 4,900,000 | I4: 온산수질개선사업소 | J4: 정성경 | K4: 052-229-2974
A5: 2025 | B5: 4 | C5: 가축방역 소요재료 구입 | D5: 5132020201 | E5: 일반검사용시약 | F5: 1 | G5: 식 | H5: 9,000,000 | I5: 동물위생과 | J5: 이익희 | K5: 052-229-5242
A6: 2025 | B6: 4 | C6: 가축방역차량 구입 | D6: 2510150701 | E6: 스포츠유틸리티차량 | F6: 1 | G6: 대 | H6: 42,000,000 | I6: 동물위생과 | J6: 이익희 | K6: 052-229-5242
A7: 2025 | B7: 4 | C7: 공간정보 시설물관리(상수, 하수, 도로) 시스템 노후장비 교체 | D7: 검토중 | E7: 검토중 | F7: 8 | G7: EA | H7: 205,870,000 | I7: 스마트도시과 | J7: 이용진 | K7: 052-229-6844
A8: 2025 | B8: 4 | C8: 남외동 LID 비점오염 저감사업 | D8: 3011150501 | E8: 레미콘(25-18-8) | F8: 276 | G8: ㎥ | H8: 25,745,280 | I8: 맑은물정책과 | J8: 이지희 | K8: 052-229-7544
A9: 2025 | B9: 4 | C9: 남외동 LID 비점오염 저감사업 | D9: 3011150501 | E9: 레미콘(25-24-15) | F9: 65 | G9: ㎥ | H9: 6,829,550 | I9: 맑은물정책과 | J9: 이지희 | K9: 052-229-7544
A10: 2025 | B10: 4 | C10: 남외동 LID 비점오염 저감사업 | D10: 3011159701 | E10: 아스콘, #78, 표층용 | F10: 53 | G10: 톤 | H10: 5,317,490 | I10: 맑은물정책과 | J10: 이지희 | K10: 052-229-7544
A11: 2025 | B11: 4 | C11: 남외동 LID 비점오염 저감사업 | D11: 3011159701 | E11: 아스콘, #467, 기층용 | F11: 155 | G11: 톤 | H11: 14,013,550 | I11: 맑은물정책과 | J11: 이지희 | K11: 052-229-7544
A12: 2025 | B12: 4 | C12: 남외동 LID 비점오염 저감사업 | D12: 3013159201 | E12: 안전유도블록(300×300×T60,선형) | F12: 17,219 | G12: EA | H12: 77,809,500 | I12: 맑은물정책과 | J12: 이지희 | K12: 052-229-7544
A13: 2025 | B13: 4 | C13: 남외동 LID 비점오염 저감사업 | D13: 3013159201 | E13: 안전유도블록(300×300×T60,점형) | F13: 3,382 | G13: EA | H13: 15,219,000 | I13: 맑은물정책과 | J13: 이지희 | K13: 052-229-7544
A14: 2025 | B14: 4 | C14: 남외동 LID 비점오염 저감사업 | D14: 3013150301 | E14: 보차도경계블록(200×250×1000) | F14: 160 | G14: EA | H14: 5,241,600 | I14: 맑은물정책과 | J14: 이지희 | K14: 052-229-7544
A15: 2025 | B15: 4 | C15: 남외동 LID 비점오염 저감사업 | D15: 3013150301 | E15: 유입경계블록(200×250×1000) | F15: 541 | G15: EA | H15: 21,845,580 | I15: 맑은물정책과 | J15: 이지희 | K15: 052-229-7544
A16: 2025 | B16: 4 | C16: 남외동 LID 비점오염 저감사업 | D16: 3013150301 | E16: 경계블록(150×150×1000,직선) | F16: 2,176 | G16: EA | H16: 33,945,600 | I16: 맑은물정책과 | J16: 이지희 | K16: 052-229-7544
A17: 2025 | B17: 4 | C17: 남외동 LID 비점오염 저감사업 | D17: 4014219701 | E17: PE이중벽관(D300) | F17: 105 | G17: m | H17: 2,247,000 | I17: 맑은물정책과 | J17: 이지희 | K17: 052-229-7544
A18: 2025 | B18: 4 | C18: 남외동 LID 비점오염 저감사업 | D18: 4014219701 | E18: PE이중벽관(D250) | F18: 12 | G18: m | H18: 187,200 | I18: 맑은물정책과 | J18: 이지희 | K18: 052-229-7544
A19: 2025 | B19: 4 | C19: 남외동 LID 비점오염 저감사업 | D19: 4014219701 | E19: PE이중벽관(D150) | F19: 5 | G19: m | H19: 50,000 | I19: 맑은물정책과 | J19: 이지희 | K19: 052-229-7544
A20: 2025 | B20: 4 | C20: 남외동 LID 비점오염 저감사업 | D20: 4014219702 | E20: 수도용폴리에틸렌관(D50) | F20: 200 | G20: m | H20: 452,000 | I20: 맑은물정책과 | J20: 이지희 | K20: 052-229-7544
A21: 2025 | B21: 4 | C21: 남외동 LID 비점오염 저감사업 | D21: 4014178203 | E21: 사각수로관(500*500) | F21: 12 | G21: EA | H21: 4,290,000 | I21: 맑은물정책과 | J21: 이지희 | K21: 052-229-7544
A22: 2025 | B22: 4 | C22: 남외동 LID 비점오염 저감사업 | D22: 3012170202 | E22: 부직포 (200g/m2 이상) | F22: 36,386 | G22: ㎡ | H22: 26,561,780 | I22: 맑은물정책과 | J22: 이지희 | K22: 052-229-7544
A23: 2025 | B23: 4 | C23: 남외동 LID 비점오염 저감사업 | D23: 1017150401 | E23: 유기질비료(조경식재용 20kg/포) | F23: 383 | G23: kg | H23: 2,604,400 | I23: 맑은물정책과 | J23: 이지희 | K23: 052-229-7544
A24: 2025 | B24: 4 | C24: 남외동 LID 비점오염 저감사업 | D24: 4710996801 | E24: 전처리시설A | F24: 1 | G24: 개소 | H24: 125,000,000 | I24: 맑은물정책과 | J24: 이지희 | K24: 052-229-7544
A25: 2025 | B25: 4 | C25: 남외동 LID 비점오염 저감사업 | D25: 4710996801 | E25: 전처리시설B | F25: 1 | G25: 개소 | H25: 125,000,001 | I25: 맑은물정책과 | J25: 이지희 | K25: 052-229-7544
A26: 2025 | B26: 4 | C26: 남외동 LID 비점오염 저감사업 | D26: 4710996801 | E26: 빗물저류조A | F26: 1 | G26: 개소 | H26: 103,900,000 | I26: 맑은물정책과 | J26: 이지희 | K26: 052-229-7544
A27: 2025 | B27: 4 | C27: 남외동 LID 비점오염 저감사업 | D27: 4710996801 | E27: 빗물저류조B | F27: 1 | G27: 개소 | H27: 103,900,000 | I27: 맑은물정책과 | J27: 이지희 | K27: 052-229-7544
A28: 2025 | B28: 4 | C28: 노후 민방위 경보시설 교체 | D28: 4617160601 | E28: 사이렌 | F28: 3 | G28: 식 | H28: 200,000,000 | I28: 자연재난과 | J28: 최준호 | K28: 052-229-2693
A29: 2025 | B29: 4 | C29: 노후배수관 교체공사 관급자재 구매 | D29: 22839939 | E29: 수도용덕타일주철관 | F29: 100 | G29: 본 | H29: 45,000,000 | I29: 상수도사업본부 남부사업소 | J29: 선종권 | K29: 052-229-5705
A30: 2025 | B30: 4 | C30: 농업미생물 배양실 배지 구입 | D30: 1012159901 | E30: 보조사료(미생물 배지) | F30: 650 | G30: 포 | H30: 49,000,000 | I30: 농업지원과 | J30: 김소영 | K30: 052-229-5456
A31: 2025 | B31: 4 | C31: 다중이용업소(무인점포) 관계장 교육물품 제작 | E31: 무인점포 화재안전 가이드북 | F31: 2000 | G31: 부 | H31: 4,000,000 | I31: 예방안전과 | J31: 심상범 | K31: 052-229-4564
A32: 2025 | B32: 4 | C32: 디지털자료실 이용자용 그래픽소프트웨어 구입 | D32: 4323210201 | E32: 그래픽소프트웨어 | F32: 4 | G32: 대 | H32: 5,310,000 | I32: 울산도서관 정보서비스과 | J32: 정희재 | K32: 052-229-6985 | L32: 디지털 자료실 이용자용
A33: 2025 | B33: 4 | C33: 상반기 수질개선제 구입 | D33: 1017999901 | E33: 토양개량제 | F33: 3,500 | G33: 20kg/포 | H33: 269,500,000 | I33: 맑은물정책과 | J33: 김명옥 | K33: 052-229-7543 | L33: 수질 및 저질개선용
A34: 2025 | B34: 4 | C34: 상반기 시약 및 초자(소모품)구매 | E34: 시약 및 초자류(소모품) | F34: 30 | G34: ea | H34: 5,000,000 | I34: 온산수질개선사업소 | J34: 정성경 | K34: 052-229-2974
A35: 2025 | B35: 4 | C35: 수장대 유물보관 수장대 구입 | D35: 56121903 | E35: 박물관 수장고용 수납장 | F35: 15 | G35: 대 | H35: 27,000,000 | I35: 울산박물관 | J35: 최윤진 | K35: 052-229-4741
A36: 2025 | B36: 4 | C36: 식품·의약품 검사 | E36: 식품·의약품 검사 시약 및 초자 31품목 | F36: 84 | G36: ea | H36: 20,000,000 | I36: 식약품연구과 | J36: 김경남 | K36: 052-229-5235
A37: 2025 | B37: 4 | C37: 신규급수공사 관급자재 구매 | D37: 23627727 | E37: 계량기보호통등 29종 | F37: 100 | G37: 개 | H37: 48,000,000 | I37: 상수도사업본부 남부사업소 | J37: 선종권 | K37: 052-229-5705
A38: 2025 | B38: 4 | C38: 연속이온분석장비 소모품 구매 | E38: Cation column C6 2x150mm 등 8종 | F38: 1 | G38: 식 | H38: 19,978,000 | I38: 대기연구과 | J38: 이지나 | K38: 052-229-6184
A39: 2025 | B39: 4 | C39: 울산도서관 보안장비 구입 | D39: 4322250101 | E39: 방화벽장치 | F39: 1 | G39: 대 | H39: 41,470,000 | I39: 울산도서관 정보서비스과 | J39: 정희재 | K39: 052-229-6985
A40: 2024 | B40: 4 | C40: 울산도서관 보안장비 구입 | D40: 4323320501 | E40: 보안소프트웨어 | F40: 1 | G40: 대 | H40: 49,000,000 | I40: 울산도서관 정보서비스과 | J40: 정희재 | K40: 052-229-6985
A41: 2025 | B41: 4 | C41: 울산도서관 비도서(DVD) 구입 | D41: 4320200301 | E41: DVD | F41: 1 | G41: 식 | H41: 3,000,000 | I41: 울산도서관 정보서비스과 | J41: 장원익 | K41: 052-229-6983
A42: 2025 | B42: 4 | C42: 울산문화예술회관 안전디자인 사인물 제작설치 | E42: 문화예술회관 사인물 대형 외 25종 | F42: 482 | G42: ea | H42: 143,635,000 | I42: 경영관리과 | J42: 이혜인 | K42: 052-226-8227
A43: 2025 | B43: 4 | C43: 울산아이문화패스 시스템 구축 위한 물품 구입 | D43: 4323320501 | E43: 보안소프트웨어 | F43: 1 | G43: 대 | H43: 49,500,000 | I43: 문화예술과 | J43: 김성호 | K43: 052-229-3723
A44: 2025 | B44: 4 | C44: 울산아이문화패스 시스템 구축 위한 물품 구입 | D44: 4322261201 | E44: 네트워크스위치(L2) | F44: 1 | G44: 대 | H44: 1,410,000 | I44: 문화예술과 | J44: 김성호 | K44: 052-229-3723
A45: 2025 | B45: 4 | C45: 울산아이문화패스 시스템 구축 위한 물품 구입 | D45: 4322261201 | E45: 네트워크스위치(L4) | F45: 1 | G45: 대 | H45: 24,393,600 | I45: 문화예술과 | J45: 김성호 | K45: 052-229-3723
A46: 2025 | B46: 4 | C46: 울산아이문화패스 시스템 구축 위한 물품 구입 | D46: 4321150102 | E46: 컴퓨터서버 | F46: 4 | G46: 대 | H46: 23,980,000 | I46: 문화예술과 | J46: 김성호 | K46: 052-229-3723
A47: 2025 | B47: 4 | C47: 울산어린이청소년도서관 관용차량 구입 | D47: 2510150901 | E47: 전기승용차 | F47: 1 | G47: 대 | H47: 48,820,000 | I47: 울산도서관 운영지원과 | J47: 박휘돈 | K47: 052-229-6863
A48: 2025 | B48: 4 | C48: 위험물 민원 질의응답 사례집 제작 | E48: 위험물 민원 질의응답 사례집 | F48: 150 | G48: 부 | H48: 2,800,000 | I48: 예방안전과 | J48: 오상훈 | K48: 052-229-6141
A49: 2025 | B49: 4 | C49: 유해대기측정시스템 유지관리 소모품 구매 | E49: SIFT MS Scheduled Maintenance Kit for 6Month 등 3종 | F49: 1 | G49: 식 | H49: 19,946,190 | I49: 대기연구과 | J49: 이지나 | K49: 052-229-6184
A50: 2025 | B50: 4 | C50: 음식물 파쇄선별기 및 미세파쇄기 파쇄날 구매 | D50: 기타 | E50: 음식물 파쇄선별기 및 미세파쇄기 파쇄날 | F50: 1 | G50: 식 | H50: 26,800,000 | I50: 온산수질개선사업소 | J50: 안소군 | K50: 052-229-5982
A51: 2025 | B51: 4 | C51: 잔류물질검사 소모품 구입 | D51: 5132020201 | E51: 일반검사용시약 | F51: 1 | G51: 식 | H51: 25,000,000 | I51: 정밀검사과 | J51: 김기성 | K51: 052-229-5312
A52: 2025 | B52: 4 | C52: 재난관측용 CCTV 노후 교체 및 보강 | D52: 4617162201 | E52: 영상감시장치 | F52: 24 | G52: 개 | H52: 142,000,000 | I52: 자연재난과 | J52: 이영철 | K52: 052-229-2692
A53: 2025 | B53: 4 | C53: 종합검정실 건조기 구입 | D53: 41104510 | E53: 건조캐비닛또는오븐 | F53: 1 | G53: 개 | H53: 3,000,000 | I53: 농업지원과 | J53: 마소희 | K53: 052-229-5444
A54: 2025 | B54: 4 | C54: 중금속 및 탄소분석기 소모품 구매 | E54: Oxidation furnace thermocouple 4종 | F54: 1 | G54: 식 | H54: 17,348,100 | I54: 대기연구과 | J54: 이지나 | K54: 052-229-6184
A55: 2025 | B55: 4 | C55: 지진가속도 계측시설 노후 교체 | D55: 4111410701 | E55: 지진계 | F55: 1 | G55: 식 | H55: 93,000,000 | I55: 자연재난과 | J55: 정장식 | K55: 052-229-2694
A56: 2025 | B56: 4 | C56: 진하중계펌프장 유출유량계 수리 | D56: 21632417, 22276063 | E56: 초음파 유량계(250mm) | F56: 1 | G56: EA | H56: 9,308,000 | I56: 온산수질개선사업소 | J56: 나일주 | K56: 052-229-5992
A57: 2025 | B57: 4 | C57: 질병조사 및 감시 | E57: 매개 진드기 등 감염병 검사 시약 16품목 | F57: 57 | G57: ea | H57: 14,000,000 | I57: 질병조사과 | J57: 우해미 | K57: 052-229-4693
A58: 2025 | B58: 4 | C58: 특수수종 및 경관목 구입 | D58: 1016159901 | E58: 조경수 | F58: 50 | G58: 본 | H58: 100,000,000 | I58: 수목원관리사무소 | J58: 조민기 | K58: 052-229-8571
A59: 2025 | B59: 4 | C59: 행정전산장비(프린터) 구입 | D59: 43212105 | E59: 레이저프린터 | F59: 15 | G59: 대 | H59: 15,000,000 | I59: 정보화담당관 | J59: 한상혁 | K59: 052-229-2354
A60: 2025 | B60: 4 | C60: 태화강 둔치 자전거도로 사고위험지역 안전개선사업 | D60: 3011150501 | E60: 레미콘 | F60: 34 | G60: ㎥ | H60: 3,193,770 | I60: 생태정원과 | J60: 김만수 | K60: 052-229-8542
A61: 2025 | B61: 4 | C61: 태화강 둔치 자전거도로 사고위험지역 안전개선사업 | D61: 3013150301 | E61: 자연석경계석 | F61: 570 | G61: EA | H61: 12,992,580 | I61: 생태정원과 | J61: 김만수 | K61: 052-229-8542
A62: 2025 | B62: 4 | C62: 태화강 둔치 자전거도로 사고위험지역 안전개선사업 | D62: 3121151301 | E62: 노면표지용페인트 | F62: 15 | G62: 포 | H62: 571,360 | I62: 생태정원과 | J62: 김만수 | K62: 052-229-8542
A63: 2025 | B63: 4 | C63: 태화강 둔치 자전거도로 사고위험지역 안전개선사업 | E63: 칼라아스콘 | F63: 417 | G63: 톤 | H63: 60,465,000 | I63: 생태정원과 | J63: 김만수 | K63: 052-229-8542
A64: 2025 | B64: 5 | C64: 2025년 울산대곡박물관 특별기획전 도록 발간 | D64: 55101599 | E64: 기타인쇄물 | F64: 500 | G64: 부 | H64: 20,000,000 | I64: 울산박물관 | J64: 전수정 | K64: 052-229-4782
A65: 2025 | B65: 5 | C65: 가축질병 검사키트 구입 | D65: 5132020201 | E65: 일반검사용시약 | F65: 1 | G65: 식 | H65: 20,000,000 | I65: 동물위생과 | J65: 이익희 | K65: 052-229-5242
A66: 2025 | B66: 5 | C66: 농수산물 안전성 검사 | E66: 농수산물 분석용 시약 및 소모품 | F66: 30 | G66: ea | H66: 30,000,000 | I66: 농수산물검사소 | J66: 신지혜 | K66: 052-229-6202
A67: 2025 | B67: 5 | C67: 민방위 경보사이렌 함체 구입 | D67: 3023169901 | E67: 컨테이너하우스 | F67: 1 | G67: 식 | H67: 4,500,000 | I67: 자연재난과 | J67: 최준호 | K67: 052-229-2693
A68: 2025 | B68: 5 | C68: 성암소각장 1,2호기 재건립 사업 전기공사 | D68: 2611160101 | E68: 비상발전기 | F68: 1 | G68: 대 | H68: 390,000,000 | I68: 자원순환과 | J68: 고봉일 | K68: 052-229-3252
A69: 2025 | B69: 5 | C69: 성암소각장 1,2호기 재건립 사업 전기공사 | D69: 3912110702 | E69: 조명자동제어설비 | F69: 1 | G69: 식 | H69: 59,541,000 | I69: 자원순환과 | J69: 고봉일 | K69: 052-229-3252
A70: 2025 | B70: 5 | C70: 성암소각장 1,2호기 재건립 사업 전기공사 | D70: 2611160701 | E70: 태양광발전설비 | F70: 1 | G70: 식 | H70: 681,497,000 | I70: 자원순환과 | J70: 고봉일 | K70: 052-229-3252
A71: 2025 | B71: 5 | C71: 성암소각장 1,2호기 재건립 사업 전기공사 | D71: 4517162201 | E71: CCTV | F71: 43 | G71: 대 | H71: 253,801,000 | I71: 자원순환과 | J71: 고봉일 | K71: 052-229-3252
A72: 2025 | B72: 5 | C72: 성암소각장 1,2호기 재건립 사업 전기공사 | D72: 3911152607 | E72: 가로등주 및 보안등주 | F72: 45 | G72: 주 | H72: 51,939,000 | I72: 자원순환과 | J72: 고봉일 | K72: 052-229-3252
A73: 2025 | B73: 5 | C73: 성암소각장 1,2호기 재건립 사업 전기공사 | D73: 3911169701 | E73: 가로등 및 보안등 | F73: 45 | G73: 개 | H73: 12,418,000 | I73: 자원순환과 | J73: 고봉일 | K73: 052-229-3252
A74: 2025 | B74: 5 | C74: 성암소각장 1,2호기 재건립 사업 전기공사 | D74: 3911210201 | E74: 조명등 | F74: 51 | G74: 개 | H74: 352,054,000 | I74: 자원순환과 | J74: 고봉일 | K74: 052-229-3252
A75: 2025 | B75: 5 | C75: 성암소각장 1,2호기 재건립 사업 전기공사 | D75: 3913170401 | E75: 케이블트레이 | F75: 1 | G75: 식 | H75: 340,255,000 | I75: 자원순환과 | J75: 고봉일 | K75: 052-229-3252
A76: 2025 | B76: 5 | C76: 성암소각장 1,2호기 재건립 사업 전기공사 | D76: 4111250101 | E76: 유량계 | F76: 2 | G76: 대 | H76: 127,826,000 | I76: 자원순환과 | J76: 고봉일 | K76: 052-229-3252
A77: 2025 | B77: 5 | C77: 수질 보전과 먹는물 안전성 검사(수질 및 먹는물 분석 시약 구매) | D77: 12161599 | E77: 분석용 시약, 표준물질 | F77: 20 | G77: ea | H77: 10,000,000 | I77: 수질연구과 | J77: 임지유 | K77: 052-229-6193
A78: 2025 | B78: 5 | C78: 온-나라 문서시스템 저장장치 증설 | D78: 4320180201 | E78: 디스크어레이 | F78: 1 | G78: 대 | H78: 35,000,000 | I78: 정보화담당관 | J78: 김성욱 | K78: 052-229-2355
A79: 2025 | B79: 5 | C79: 자료실 전산장비 구입 | D79: 4323210201 | E79: 데스크톱컴퓨터 | F79: 8 | G79: 대 | H79: 3,180,000 | I79: 울산도서관 정보서비스과 | J79: 정희재 | K79: 052-229-6985 | L79: 자료실 안내데스크
A80: 2025 | B80: 5 | C80: 자료실 전산장비 구입 | D80: 4321190201 | E80: 액정모니터 | F80: 12 | G80: 대 | H80: 7,406,960 | I80: 울산도서관 정보서비스과 | J80: 정희재 | K80: 052-229-6985 | L80: 자료실 안내데스크
A81: 2025 | B81: 5 | C81: 자료실 전산장비 구입 | D81: 4321210501 | E81: 레이저프린터 | F81: 2 | G81: 대 | H81: 4,092,000 | I81: 울산도서관 정보서비스과 | J81: 정희재 | K81: 052-229-6985 | L81: 자료실 컬러프린터
A82: 2025 | B82: 5 | C82: 자료실 전산장비 구입 | D82: 4511189301 | E82: 영상정보디스플레이장치 | F82: 2 | G82: 대 | H82: 5,786,000 | I82: 울산도서관 정보서비스과 | J82: 정희재 | K82: 052-229-6985 | L82: 서가용 DID
A83: 2025 | B83: 5 | C83: 자료실 전산장비 구입 | D83: 4321179701 | E83: 도서관리시스템 | F83: 1 | G83: 대 | H83: 14,157,000 | I83: 울산도서관 정보서비스과 | J83: 정희재 | K83: 052-229-6985 | L83: 자가대출반납기
A84: 2025 | B84: 5 | C84: 표준가스 구매 | E84: 측정소 교정용 | F84: 24 | G84: 개 | H84: 12,000,000 | I84: 대기연구과 | J84: 엄슬기 | K84: 052-229-6186
A85: 2025 | B85: 6 | C85: 2025년 보건환경분야 시약 및 소모품 구매 | D85: 12161599 | E85: 시약 및 소모품 | F85: 1 | G85: 식 | H85: 15,000,000 | I85: 환경조사과 | J85: 탁경학 | K85: 052-229-6173
A86: 2025 | B86: 6 | C86: 2025년 울산박물관 제1차 특별기획전 '향리문견록' 홍보물 구입 | E86: 포스터 외 4종 | F86: 1 | G86: 식 | H86: 10,000,000 | I86: 울산박물관 | J86: 정수영 | K86: 052-229-4723
A87: 2025 | B87: 6 | C87: 민방위 경보사이렌 노후 축전지 교체 | D87: 2611170702 | E87: 축전지 | F87: 28 | G87: 개 | H87: 10,000,000 | I87: 자연재난과 | J87: 최준호 | K87: 052-229-2693
A88: 2025 | B88: 6 | C88: 사이버침해대응센터 노후장비 교체 [암호화장비(VPN) 본청용 대형] | D88: 4322250101 | E88: 방화벽장치 | F88: 2 | G88: 대 | H88: =50250000*2 -> 100,500,000 | I88: 정보화담당관 | J88: 김웅중 | K88: 052-229-3015
A89: 2025 | B89: 6 | C89: 사이버침해대응센터 노후장비 교체 [암호화장비(VPN) 사업소용 중·대형] | D89: 4322250101 | E89: 방화벽장치 | F89: 1 | G89: 대 | H89: 40,000,000 | I89: 정보화담당관 | J89: 김웅중 | K89: 052-229-3015
A90: 2025 | B90: 6 | C90: 사이버침해대응센터 노후장비 교체 [암호화장비(VPN) 사업소용 중형] | D90: 4322250101 | E90: 방화벽장치 | F90: 1 | G90: 대 | H90: 35,000,000 | I90: 정보화담당관 | J90: 김웅중 | K90: 052-229-3015
A91: 2025 | B91: 6 | C91: 사이버침해대응센터 노후장비 교체 [암호화장비(VPN) 통합관리 솔루션 외 구성 서버 2대] | D91: 4323320501 | E91: 보안소프트웨어 | F91: 2 | G91: 식 | H91: 95,000,000 | I91: 정보화담당관 | J91: 김웅중 | K91: 052-229-3015
A92: 2025 | B92: 6 | C92: 사이버침해대응센터 노후장비 교체 [행정망 라우터 외 구성 모듈, 라이선스 등 5종] | D92: 4322261201 | E92: 방화벽장치 | F92: 2 | G92: 식 | H92: 247,000,000 | I92: 정보화담당관 | J92: 김웅중 | K92: 052-229-3015
A93: 2025 | B93: 6 | C93: 수질 보전과 먹는물 안전성 검사(시험분석용 소모품 구매) | D93: 41121806 | E93: GC용 바이알, 캡, 컬럼, 플라스크 등 | F93: 10 | G93: ea/pk | H93: 20,000,000 | I93: 수질연구과 | J93: 임지유 | K93: 052-229-6193
A94: 2025 | B94: 6 | C94: 재난안전통신망 단말기 구입 | D94: 23827553 | E94: 휴대전화기 | F94: 15 | G94: 대 | H94: 17,000,000 | I94: 정보화담당관 | J94: 강상욱 | K94: 052-229-2384
A95: 2025 | B95: 6 | C95: 화재대피용 방연물품 구매 | D95: 46182001 | E95: 화재대피용 방연마스크 | F95: 4,285 | G95: 개 | H95: 15,000,000 | I95: 예방안전과 | J95: 장수한 | K95: 052-229-6143
A96: 2025 | B96: 3~4 | C96: 민방위 경보사이렌 확대 설치 | D96: 4617160601 | E96: 사이렌 | F96: 1 | G96: 식 | H96: 40,000,000 | I96: 자연재난과 | J96: 최준호 | K96: 052-229-2693

Sheet 작성요령(공사) (hidden)
A1: 항목 | B1: 입력방법 | C1: 입력예시
A2: 발주년도 | B2: 발주년도 입력 | C2: 2025
A3: 발주월 | B3: 발주월 입력 | C3: 4
A4: 공사명 | B4: 공사명 입력
A5: 공종 | B5: 토건/ 토목/ 건축/ 전문/ 전기/ 통신/ 소방/ 기타 중 택 1 | C5: 건축
A6: 발주물량 또는 규모 | B6: 발주물량
A7: 발주도급금액 | B7: 노무를 제공하고 수취하는 공사관련 금액 | C7: 100,000,000
A8: 발주관급자재비 | B8: 발주기관이 제공하는 공사자재 금액 | C8: 100,000,000
A9: 발주기타금액 | C9: 100,000,000
A10: 발주합계금액 | B10: 발주도급액+발주관급자재비+기타 자동입력 | C10: =SUM(C7:C9) -> 300,000,000
A11: 금차도급금액 | B11: 장기초년도 요청인 경우 금차년도 집행예정액 입력
A12: 부서명 | B12: 해당부서 입력 | C12: 교통기획과
A13: 담당자 | B13: 담당자명 입력 | C13: 홍길동
A14: 연락처 | B14: 담당자 연락처 입력 | C14: 052-229-1234
A15: 비고란

Sheet 작성요령(용역) (hidden)
A1: 항목 | B1: 입력방법 | C1: 입력예시
A2: 발주년도 | B2: 발주년도 입력 | C2: 2025
A3: 발주월 | B3: 발주월 입력 | C3: 5
A4: 용역명 | B4: 용역 명칭
A5: 업무유형 | B5: 신규/장기 중 택1 | C5: 신규
A6: 용역구분 | B6: 일반용역/기술용역 중 택1 | C6: 기술용역
A7: 사업내용 | B7: 사업내용 | C7: 영상제작 1식
A8: 예산액 (단위: 원) | B8: (1)신규: 전체 예산금액 입력 (2)장기: 당해년도 집행금액 입력 | C8: 100,000,000
A9: 부서명 | B9: 해당부서 입력 | C9: 관광과
A10: 담당자 | B10: 담당자명 입력 | C10: 홍길동
A11: 연락처 | B11: 담당자 연락처 입력 | C11: 052-229-1234
A12: 비고

Sheet 작성요령(물품) (hidden)
A1: 항목 | B1: 입력방법 | C1: 입력예시
A2: 발주년도 | B2: 발주년도 입력 | C2: 2025
A3: 발주월 | B3: 발주월 입력 | C3: 5
A4: 사업명 | B4: 사업명 입력
A5: 세부품명번호 | B5: 물품별 세부품명번호(10자리) 입력 | C5: 3015200101
A6: 세부품명 | B6: 세부품명 입력 | C6: 디자인형울타리
A7: 수량 | B7: 수량 입력 | C7: 1
A8: 단위 | B8: 단위 입력 | C8: \
A9: 구매예정금액 | B9: 구매예정금액 입력 | C9: 40,000,000
A10: 부서명 | B10: 해당부서 입력 | C10: 회계과
A11: 담당자 | B11: 담당자명 입력 | C11: 홍길동
A12: 연락처 | B12: 담당자 연락처 입력 | C12: 052-229-1234
A13: 비고
